{"text_format":"1","workbook":"xlsx","n_sheets":3,"sheets":["Лист1","Лист2","Лист3"],"not_rendered":{"charts":0,"images":0,"macros":1,"external_links":0,"defined_names":1,"comments":0,"pivot_tables":0},"unopened":[],"bounds":{"document_bytes":16777216,"sheet_cells":100000,"rows_first":2000,"rows_last":500,"rows_between":2000,"halvings":0,"cell_chars":16384,"cell_head_chars":4096},"cells_cut":0,"cells_raw":0,"read":"whole","date_system":"1900"}

{"sheet":"Лист1","index":0,"n_rows":9,"n_cols":17,"rows_kept":9,"cut":false,"hidden":false,"merged":[[1,13,1,14],[1,3,1,4],[1,5,1,6],[1,7,1,8],[1,9,1,10],[1,11,1,12]]}
[]
[null,"Февраль","Зар.плата","Январь",null,"Февраль",null,"Март",null,"Апрель",null,"Май",null,"Июнь"]
[null,null,"Продажи"]
[]
[null,null,"Зар.плата",100,null,100,null,100,null,100,null,100,null,100]
[null,null,"Пенсионные",200,null,200,null,200,null,200,null,200,null,200]
[null,null,"Вет.услуги",300,null,300,null,300,null,300,null,300,null,300]
[]
[null,null,null,null,null,null,null,null,null,null,null,null,null,null,null,null,"Столбец С и строку 2 не занимать ничем, кроме таблицы"]

{"sheet":"Лист2","index":1,"n_rows":2,"n_cols":2,"rows_kept":2,"cut":false,"hidden":false,"merged":[]}
[]
[null,{"$f":"IFERROR(INDEX(Лист3!D4:M6,MATCH(Лист1!C2,Лист3!C4:C6,),MATCH(Лист1!B2,Лист3!D2:M2,)+(Лист1!C3<>Лист3!D3)),\"Нет данных\")","v":"Февраль\nПродажи\nЗар.плата"}]

{"sheet":"Лист3","index":2,"n_rows":6,"n_cols":13,"rows_kept":6,"cut":false,"hidden":false,"merged":[[1,3,1,4],[1,5,1,6],[1,7,1,8],[1,9,1,10],[1,11,1,12]]}
[]
[null,null,null,"Январь",null,"Февраль",null,"Март",null,"Апрель",null,"Май"]
[null,null,null,"Продажи","Трансп.отдел","Продажи","Трансп.отдел","Продажи","Трансп.отдел","Продажи","Трансп.отдел","Продажи","Трансп.отдел"]
[null,null,"Зар.плата",{"$f":"C$2&D$2&CHAR(10)&D$3&CHAR(10)&$C4","v":"Январь\nПродажи\nЗар.плата"},"Январь\nТрансп.отдел\nЗар.плата","Февраль\nПродажи\nЗар.плата","Февраль\nТрансп.отдел\nЗар.плата","Март\nПродажи\nЗар.плата","Март\nТрансп.отдел\nЗар.плата","Апрель\nПродажи\nЗар.плата","Апрель\nТрансп.отдел\nЗар.плата","Май\nПродажи\nЗар.плата","Май\nТрансп.отдел\nЗар.плата"]
[null,null,"Пенсионные",{"$f":"C$2&D$2&CHAR(10)&D$3&CHAR(10)&$C5","v":"Январь\nПродажи\nПенсионные"},"Январь\nТрансп.отдел\nПенсионные","Февраль\nПродажи\nПенсионные","Февраль\nТрансп.отдел\nПенсионные","Март\nПродажи\nПенсионные","Март\nТрансп.отдел\nПенсионные","Апрель\nПродажи\nПенсионные","Апрель\nТрансп.отдел\nПенсионные","Май\nПродажи\nПенсионные","Май\nТрансп.отдел\nПенсионные"]
[null,null,"Вет.услуги",{"$f":"C$2&D$2&CHAR(10)&D$3&CHAR(10)&$C6","v":"Январь\nПродажи\nВет.услуги"},"Январь\nТрансп.отдел\nВет.услуги","Февраль\nПродажи\nВет.услуги","Февраль\nТрансп.отдел\nВет.услуги","Март\nПродажи\nВет.услуги","Март\nТрансп.отдел\nВет.услуги","Апрель\nПродажи\nВет.услуги","Апрель\nТрансп.отдел\nВет.услуги","Май\nПродажи\nВет.услуги","Май\nТрансп.отдел\nВет.услуги"]